Workbook

Sheet RFP Annexure A
A1: NOTE THAT THESE ARE ONLY INDICATIVE FIGURES FOR TENDER EVALUATIONS PURPOSES. FINAL INSURED VALUE WILL BE DETERMINED AT THE DATE OF CONTRACTING.
B2: ANNEXURE A: PRICING SCHEDULE
B3: SPECIAL INVESTIGATING UNIT: Short-term Insurance: 60 months period
B4: CLASS OF INSURANCE | C4: Final Insured values Sums for RFP 30 Sep 2023 | D4: MONTHLY PREMIUM (YEAR 1) 01 APRIL 2024 | E4: YEAR 2 - 01 APRIL 2025 | F4: YEAR 3 - 01 APRIL 2026 | G4: YEAR 4 - 01 APRIL 2027 | H4: YEAR 5 - 01 APRIL 2028
B5: SUMMARY | C5: R | D5: R
A6: A | B6: Commercial
B7: Fire Section
B8: Claims Preparation Costs
B9: Premises:
B10: Fixtures and fittings | C10: R24,866,174
A11: B | B11: Office Section
B12: Claims Preparation Costs
B13: Contents (Other office and leasehold improvements) | C13: R46,886,978
B14: Documents
A15: C | B15: Electronic equipment Section
B16: Claims Preparation Costs
B17: All premises owned, hired, leased by the Insured
B18: Hardware, Software, peripheral equipment, including printers, scanners/faxes, Video conference equipment, Audio visual system & accessories | C18: R38,553,256
B19: Servers | C19: R21,247,000
B20: Laptops (1132) | C20: R43,570,618
B21: Total Sum Insured for fire, premises content, office section, electronic equipment | C21: =SUM(C6:C20) -> R175,124,026 | D21: =SUM(D18:D20) -> R0 | E21: R0 | F21: R0 | G21: R0 | H21: R0
A22: D | B22: Business Interruption Section
B23: Claims Preparation Costs | C23: R5,000
B24: Addilional Increase in cost of working | C24: R3,500,000
A25: E | B25: Business All Risks Section
B26: Claims Preparation Costs
B27: Personal effects of employees R5,000 each maximum R50,000 | C27: R50,000
B29: SASRIA premium
B30: Total for Liability, Business interruption, business all risks
A32: F | B32: Liability Insurance
B33: Claims Preparation Costs | C33: R100,000
B34: Public Liability | C34: R5,000,000
B35: Pollution Liability | C35: R5,000,000
B36: General Liability | C36: R40,000,000
B37: Statutory Defence Costs | C37: R250,000
B38: Wrongful Arrest | C38: R250,000
B39: Defamation | C39: R250,000
B40: Employers Liability | C40: R100,000,000
B41: Breach of Copyright | C41: R250,000
B42: Advertising Liability | C42: R1,000,000
B43: Custody and Control | C43: R75,000
B44: Top up liability | C44: R30,000,000
B45: Total Monthly Premium for Liability
A48: G | B48: Motor Fleet Policy
B49: 143 x sedans and bakkies (Write off period is over 8 years, and current book value is R53 million) | C49: ='[1]PIVOT-FINAL'!$G$16 -> R63,655,188
B50: Car Hire (5000 days hire per annum)
B51: Car Rental companies
B52: SASRIA
B53: Administration Fee
B54: Total Monthly premium for vehicles
B55: Total (Motor vehicles, office contents, laptops, servers) | C55: =C49+C21 -> R238,779,214
A56: H | B56: Assistere Policy
B57: Stated Benefits
B58: Permanent employees: 600
B59: Total Monthly premium
A61: I | B61: Petty cash risks
B62: The following values per region must also be
B64: Region
A66: 1 | B66: Head Office/ Gauteng Proncial Office - Pretoria | C66: R28,000
A67: 2 | B67: East London | C67: R8,000
A68: 3 | B68: Durban | C68: R8,000
A69: 4 | B69: Cape Town | C69: R8,000
A70: 5 | B70: Bloemfontein | C70: R7,000
A71: 6 | B71: Mahikeng | C71: R8,000
A72: 7 | B72: Mthatha | C72: R5,000
A73: 8 | B73: Nelspruit | C73: R8,000
A74: 9 | B74: Limpopo | C74: R8,000
A75: 10 | B75: Kimberly | C75: R5,000
B77: Total petty cash value | C77: =SUM(C66:C76) -> R93,000
A80: Option A: | B80: TOTAL OVERALL MONTHLY INSURANCE PREMIUM, INCLUDING LAPTOPS | D80: R
A82: Option B: | B82: TOTAL OVERALL MONTHLY INSURANCE PREMIUM, EXCLUDING LAPTOPS | D82: R
B83: (Prices should be inclusive of VAT and any other rates. Bidders are required to qoute on both options, SIU reserves the right to utilise the option that brings in value for money, failure to quote both options will result in the bid disqualified)
B86: Detailed information per SIU office
B87: Fire Section
B88: Premises
B89: 1. East London
B90: Fixtures and fittings | C90: R2,156,010
B91: 2. Bloemfontein
B92: Fixtures and fittings | C92: R1,016,930
B93: 3. Meyerspark, Pretoria
B94: Fixtures and fittings | C94: R13,655,276
B95: 4. Durban
B96: Fixtures and fittings | C96: R3,000,694
B97: 5. Polokwane
B98: Fixtures and fittings | C98: R990,854
B99: 6. Nelspruit
B100: Fixtures and fittings | C100: R1,232,900
B101: 7.Kimberly
B102: Fixtures and fittings | C102: R92,289
B103: 8.Mahikeng
B104: Fixtures and fittings | C104: R1,150,474
B105: 9. Mthatha
B106: Fixtures and filttngs
B107: 10. Cape Town | C107: R1,570,747
B108: Fixtures and filttngs
C109: =SUM(C88:C108) -> R24,866,174
B111: Office Section
B112: Premise
B113: 1.East London
B114: Contents | C114: R6,312,584
B115: 2. Bloemfontein
B116: Contents | C116: R3,294,671
B117: 3. Meyerspark, Pretoria
B118: Contents | C118: R17,234,322
B119: 4. Durban
B120: Contents | C120: R9,255,020
B121: 5.Polokwane
B122: Contents | C122: R2,793,213
B123: 6. Nelspruit
B124: Contents | C124: R1,218,762
B125: 7. Kimberly
B126: Contents | C126: R85,921
B127: 8. Mahikeng
B128: Contents | C128: R2,130,852
B129: 9. Mthatha
B130: Contents | C130: R125,890
B131: 9. Cape Town
B132: Contents | C132: R4,435,744
B133: Total Sum Insured | C133: =SUM(C112:C132) -> R46,886,978
B135: Electronic Equipment Section
B136: Premises
B137: 1. East London
B138: Hardware, Software, Peripheral equipment including printers, Scanners/Faxes, Video Conference equipment, Audio visual system & accessories - As per assets register | C138: =1946890.00454356-C139 -> R1,759,171
B139: Servers | C139: R187,719
B140: 2. Bloemfontein
B141: Hardware, Software, Peripheral equipment Including printers, Scanners/Faxes, Videoconference equipment, Audio visual system & accessories - As per assets register | C141: =1625785.99478027-C142 -> R1,073,659
B142: Servers | C142: R552,127
B143: 3. Meyerspark, Pretoria
B144: Hardware, Software, Peripheral equipment Including printers, Scanners/Faxes, video Conference equipment. Audio visual system & accessories As per assets register | C144: =48355599.7683737-C145 -> R30,346,885
B145: Servers | C145: R18,008,715
B146: 4. Durban
B147: Hardware, Software, Penpheral equipment including printers, Scanners/Faxes, Video Conference equipment, Audio visual system & accessories As per assets register | C147: =3040738.70547617-C148 -> R1,768,551
B148: Servers | C148: R1,272,188
B149: 5. Polokwane
B150: Hardware, Software, Peripheral equipment including printers, Scanners/Faxes, Video Conference equipment, Audio visual system & accessories - As per assets register | C150: =1080080.39665644-C151 -> R1,063,514
B151: Servers | C151: R16,566
B152: 6. Nespruit
B153: Hardware, Software, Peripheral equipment including printers, Scanners/Faxes, Video Conference equipment. Audio visual system & accessories - As per assets register | C153: =1571030.96721534-C154 -> R1,337,349
B154: Servers | C154: R233,682
B155: 7. Kimberly
B156: Hardware, Software, Peripheral equipment Including printers, Scanners/Faxes, Video Conference equipment, Audio visual system & accessories - As per assets register | C156: R22,429
B157: 8. Mahikeng
B158: Hardware, Software, Peripheral equipment Including printers, Scanners/Faxes. Video Conference equipment. Audio visual system & accessories - As per assets reg[ster | C158: =1032871.38680548-C159 -> R445,778
B159: Servers | C159: R587,094
B160: 9. Mthatha
B161: Hardware, Software, Peripheral equipment Including printers, Scanners/Faxes video Conference equipment Audio visual system & accessories - As per assets register | C161: R13,525
B162: Servers
B163: 10. Cape Town
B164: Hardware, Software, Peripheral equipment Including printers, Scanners/Faxes video Conference equipment Audio visual system & accessories - As per assets register | C164: =1111303.90577534-C165 -> R629,465
B165: Servers | C165: R481,839
B166: Total Sum Insured | C166: =SUM(C136:C165) -> R59,800,256 | D166: =SUM(D136:D162) -> R0 | E166: R0 | F166: R0 | G166: R0 | H166: R0
C167: =C109+C133+C166 -> R131,553,408
B168: NOTE THAT THESE ARE ONLY INDICATIVE FIGURES FOR TENDER EVALUATIONS PURPOSES. FINAL INSURED VALUE WILL BE DETERMINED AT THE DATE OF CONTRACTING.
B170: Name of the Bidder:
B171: CSD Number:
B172: Bidder's representative (full names):
B173: Bidder's representative-Occupation:
B174: Signature:
